bitfinex/quotes_SOLUSD_20240718
["timestamp","ask_amount","ask_price","bid_price","bid_amount"]
[1721333394658,14.06486369,156.76,156.73,20.0]
[1721333394834,12.47,156.76,156.73,20.0]
[1721333395260,12.47,156.76,156.74,1.60321416]
[1721333395461,12.47,156.77,156.74,1.60321416]
[1721333396464,12.47,156.78,156.74,1.60321416]
[1721333396657,12.47,156.78,156.75,0.17]
[1721333396852,12.47,156.79,156.75,0.17]
[1721333397843,12.47,156.79,156.75,16.2248]
[1721333400255,12.47,156.8,156.77,0.3273]
[1721333400464,12.47,156.81,156.78,0.17]
[1721333400786,12.47,156.81,156.78,0.34]
[1721333403056,12.47,156.82,156.78,1.6154673]
[1721333403774,12.47,156.82,156.78,0.34]
[1721333404575,14.06436267,156.81,156.75,16.3821]
[1721333404755,12.47,156.81,156.76,21.61562012]
[1721333405078,12.47,156.81,156.77,0.3273]
[1721333405282,12.47,156.81,156.78,0.34]
[1721333405584,1.59452515,156.83,156.78,0.17]
[1721333405585,12.47,156.8,156.78,0.17]
[1721333408377,12.47,156.81,156.78,0.17]
[1721333409771,14.06443389,156.85,156.79,12.7973]
[1721333409973,14.06443389,156.85,156.8,0.34]
[1721333410151,12.47,156.84,156.8,0.17]
[1721333410470,1.59415925,156.83,156.79,0.3273]
[1721333410774,35.4333,156.88,156.79,0.3273]
[1721333410775,12.47,156.84,156.81,0.3273]
[1721333411186,1.59426844,156.87,156.81,0.3273]
[1721333411355,12.47,156.84,156.82,0.17]
[1721333412565,1.59426844,156.87,156.82,0.17]
[1721333412766,12.47,156.85,156.82,0.17]
[1721333412965,12.47,156.85,156.82,0.34]
[1721333413382,12.47,156.85,156.83,0.3273]
[1721333413792,12.47,156.86,156.84,0.17]
[1721333414292,1.59405518,156.9,156.84,0.17]
[1721333414463,12.47,156.88,156.84,0.17]
[1721333415167,12.47,156.88,156.85,0.3273]
[1721333415361,1.5937698,156.89,156.85,0.3273]
[1721333415581,12.47,156.88,156.86,0.17]
[1721333416495,12.47,156.87,156.86,0.17]
[1721333418492,12.47,156.87,156.78,0.3273]
[1721333418672,12.47,156.82,156.8,15.8407]
[1721333418869,12.47,156.82,156.8,15.5134]
[1721333419084,7.96929989,156.86,156.78,0.3273]
[1721333419085,12.47,156.81,156.78,0.3273]
[1721333419292,12.47,156.81,156.76,21.97070966]
[1721333419487,12.47,156.8,156.76,21.97070966]
[1721333419992,12.47,156.8,156.77,20.0]
[1721333420367,1.59421148,156.85,156.78,0.6673]
[1721333420368,12.47,156.81,156.78,0.6673]
[1721333421496,12.47,156.8,156.78,0.34]
[1721333422089,12.47,156.81,156.79,0.17]
[1721333422494,12.47,156.8,156.79,0.17]
[1721333423176,12.47,156.81,156.78,0.4973]
[1721333423373,1.59421148,156.85,156.78,0.17]
[1721333423581,12.47,156.81,156.78,0.4973]
[1721333424299,12.47,156.8,156.78,0.4973]
[1721333425773,12.47,156.79,156.78,0.17]
[1721333426395,12.47,156.79,156.77,0.34]
[1721333426582,12.47,156.78,156.77,0.34]
[1721333426975,12.47,156.78,156.74,6.94080893]
[1721333427310,12.47,156.75,156.72,15.7279]
[1721333428394,1.59467864,156.77,156.72,15.7279]
[1721333428395,12.47,156.76,156.72,15.7279]
[1721333428696,12.47,156.76,156.73,20.34]
[1721333428902,12.47,156.77,156.73,20.34]
[1721333429195,12.47,156.78,156.76,0.3273]
[1721333429366,12.47,156.78,156.74,0.3273]
[1721333429569,12.47,156.78,156.75,0.17]
[1721333429783,12.47,156.78,156.76,0.3273]
[1721333429985,12.47,156.78,156.75,0.17]
[1721333430296,14.0647723,156.77,156.75,0.17]
[1721333430472,12.47,156.77,156.75,0.17]
[1721333431670,12.47,156.76,156.73,20.17]
[1721333431989,12.47,156.75,156.74,0.17]
[1721333432786,12.47,156.75,156.73,0.34]
[1721333432996,12.47,156.75,156.73,0.17]
[1721333433308,12.47,156.74,156.71,1.1075159]
[1721333433469,12.47,156.74,156.7,0.3273]
[1721333433674,12.47,156.73,156.7,0.3273]
[1721333434480,12.47,156.73,156.72,0.3273]
[1721333434691,12.47,156.74,156.72,0.4973]
[1721333434888,12.47,156.75,156.72,0.3273]
[1721333435287,12.47,156.74,156.71,20.34]
[1721333435687,12.47,156.74,156.71,0.34]
[1721333435905,12.47,156.74,156.72,20.0]
[1721333436109,12.47,156.74,156.71,0.34]
[1721333436504,12.47,156.74,156.72,0.3273]
[1721333438620,12.47,156.74,156.71,0.34]
[1721333439409,12.47,156.74,156.72,0.3273]
[1721333440102,12.47,156.74,156.71,0.34]
[1721333440588,12.47,156.73,156.71,0.34]
[1721333441913,12.47,156.74,156.72,0.3273]
[1721333442084,12.47,156.74,156.72,1.60331545]
[1721333442285,12.47,156.74,156.72,0.3273]
[1721333442494,12.47,156.74,156.71,0.34]
[1721333442696,12.47,156.73,156.71,0.17]
[1721333443090,12.47,156.73,156.72,0.3273]
[1721333443301,12.47,156.73,156.72,0.4973]
[1721333443489,12.47,156.74,156.72,0.4973]
[1721333448508,12.47,156.73,156.72,0.4973]
[1721333449511,12.47,156.74,156.72,0.4973]
[1721333450217,12.47,156.76,156.73,0.34]
[1721333450601,12.47,156.76,156.73,1.61588429]
[1721333451403,12.47,156.76,156.73,0.34]
[1721333454927,12.47,156.76,156.74,0.3273]
[1721333458530,12.47,156.78,156.75,0.17]
[1721333459130,12.47,156.79,156.76,0.3273]
[1721333459331,12.47,156.79,156.77,0.17]
[1721333459815,12.47,156.8,156.78,0.3273]
[1721333460229,12.47,156.81,156.78,1.6028034]
[1721333460429,12.47,156.82,156.79,0.17]
[1721333460805,6.3751,156.86,156.79,0.17]
[1721333460806,12.47,156.81,156.79,0.17]
[1721333462232,1.59428768,156.85,156.8,0.3273]
[1721333462434,7.96884604,156.87,156.81,0.17]
[1721333462601,12.47,156.82,156.8,0.3273]
[1721333463034,12.47,156.82,156.81,0.17]
[1721333464433,12.47,156.83,156.81,0.17]
[1721333468637,12.47,156.82,156.81,0.17]
[1721333469437,12.47,156.82,156.78,20.0]
[1721333469640,12.47,156.8,156.77,0.17]
[1721333470134,12.47,156.8,156.77,20.17]
[1721333470336,12.47,156.78,156.77,20.0]
[1721333470515,12.47,156.78,156.74,0.3273]
[1721333470711,12.47,156.79,156.76,0.3273]
[1721333471526,12.47,156.8,156.77,0.17]
[1721333473528,1.59458363,156.82,156.77,0.17]
[1721333473730,12.47,156.8,156.77,0.17]
[1721333475542,12.47,156.79,156.77,0.17]
[1721333475750,14.0646636,156.78,156.74,0.3273]
[1721333475921,12.47,156.78,156.75,0.17]
[1721333477747,12.47,156.77,156.75,0.17]
[1721333480452,12.47,156.78,156.75,0.17]
[1721333480655,12.47,156.78,156.75,1.44578864]
[1721333480858,12.47,156.8,156.76,0.4973]
[1721333481042,12.47,156.8,156.77,0.17]
[1721333481244,12.47,156.8,156.77,1.44561075]
[1721333481539,12.47,156.79,156.77,0.17]
[1721333481746,21.8503,156.83,156.77,0.17]
[1721333481747,12.47,156.78,156.77,0.17]
[1721333482049,12.47,156.78,156.76,0.17]
[1721333482356,12.47,156.78,156.75,0.34]
[1721333483837,12.47,156.77,156.75,0.17]
[1721333485353,12.47,156.78,156.75,0.17]
[1721333487364,12.47,156.78,156.76,0.3273]
[1721333489944,12.47,156.78,156.75,0.17]
[1721333490249,12.47,156.78,156.75,0.34]
[1721333491663,12.47,156.77,156.75,0.34]
[1721333492370,12.47,156.76,156.75,0.17]
[1721333495346,12.47,156.77,156.75,0.17]
[1721333497668,6.3768,156.82,156.72,9.51024724]
[1721333497669,14.06471871,156.76,156.72,9.51024724]
[1721333497870,12.47,156.74,156.71,6.60986485]
[1721333498070,12.47,156.74,156.72,20.0]
[1721333498484,12.47,156.74,156.7,0.3273]
[1721333498646,12.47,156.74,156.7,9.83863384]
[1721333498984,12.47,156.74,156.72,0.3273]
[1721333499146,1.59498318,156.79,156.72,0.3273]
[1721333499147,1.59498318,156.79,156.74,0.3273]
[1721333499469,12.47,156.75,156.74,0.3273]
[1721333499674,12.47,156.75,156.74,0.17]
[1721333499861,12.47,156.75,156.72,0.3273]
[1721333500047,12.47,156.75,156.73,0.17]
[1721333500559,12.47,156.75,156.74,0.3273]
[1721333500760,1.59498318,156.79,156.74,0.4973]
[1721333501071,12.47,156.78,156.74,0.4973]
[1721333501279,12.47,156.76,156.74,0.17]
[1721333501447,12.47,156.76,156.73,0.34]
[1721333501648,12.47,156.75,156.73,0.17]
[1721333502964,12.47,156.74,156.71,20.0]
[1721333503163,12.47,156.73,156.7,20.3273]
[1721333503675,12.47,156.71,156.69,6.6122321]
[1721333503841,1.59513712,156.72,156.67,9.51171764]
[1721333503842,12.47,156.7,156.67,9.51171764]
[1721333504166,12.47,156.7,156.66,31.16063423]
[1721333504473,12.47,156.7,156.66,31.16702532]
[1721333505172,12.47,156.7,156.67,0.34]
[1721333505375,12.47,156.7,156.67,20.34]
[1721333506273,6.3696,156.73,156.67,0.3273]
[1721333506452,1.5953921,156.74,156.69,0.3273]
[1721333506655,1.59524018,156.75,156.71,0.3273]
[1721333506965,12.47,156.74,156.71,0.3273]
[1721333507676,12.47,156.74,156.72,0.17]
[1721333507852,1.59500499,156.77,156.73,0.3273]
[1721333508161,1.59484102,156.78,156.74,0.17]
[1721333508370,12.47,156.77,156.74,1.44579676]
[1721333508572,12.47,156.77,156.74,0.17]
[1721333512376,12.47,156.77,156.74,1.44582241]
[1721333512678,12.47,156.77,156.75,0.3273]
[1721333514293,12.47,156.8,156.75,0.3273]
[1721333514462,1.59468552,156.79,156.75,0.3273]
[1721333514666,12.47,156.77,156.75,0.3273]
[1721333515477,12.47,156.77,156.74,0.17]
[1721333515654,12.47,156.76,156.74,0.34]
[1721333518450,12.47,156.77,156.74,0.34]
[1721333520383,12.47,156.79,156.75,0.3273]
[1721333520682,12.47,156.78,156.76,0.17]
[1721333521878,1.5947194,156.81,156.73,0.3273]
[1721333521879,12.47,156.77,156.73,0.3273]
[1721333522093,12.47,156.75,156.72,20.0]
[1721333522383,12.47,156.75,156.73,20.0]
[1721333522595,12.47,156.75,156.71,20.3273]
[1721333523086,12.47,156.75,156.72,0.17]
[1721333523256,12.47,156.75,156.72,0.34]
[1721333523689,12.47,156.75,156.73,0.3273]
[1721333523875,12.47,156.76,156.73,1.6032173]
[1721333524076,12.47,156.76,156.74,0.17]
[1721333524690,12.47,156.76,156.73,0.3273]
[1721333524880,12.47,156.76,156.71,20.3273]
[1721333525065,12.47,156.76,156.72,0.17]
[1721333525467,12.47,156.75,156.72,0.17]
[1721333525781,12.47,156.74,156.72,0.17]
[1721333526378,1.59489722,156.79,156.72,0.17]
[1721333526379,12.47,156.76,156.72,0.17]
[1721333526572,1.59497147,156.75,156.72,0.17]
[1721333526889,14.06497147,156.75,156.72,0.17]
[1721333527068,49.88,156.8,156.71,20.3273]
[1721333527069,12.47,156.73,156.71,20.0]
[1721333527274,1.59497492,156.74,156.71,20.0]
[1721333527275,12.47,156.72,156.71,20.0]
[1721333527577,12.47,156.73,156.71,0.3273]
[1721333528588,12.47,156.73,156.72,0.17]
[1721333529569,12.47,156.73,156.69,29.49899261]
[1721333529772,12.47,156.73,156.7,0.3273]
[1721333530291,12.47,156.74,156.7,1.60338057]
[1721333530471,12.47,156.72,156.69,29.49899261]
[1721333530975,12.47,156.73,156.69,30.77520227]
[1721333531707,12.47,156.7,156.69,9.49899261]
[1721333531874,12.47,156.7,156.67,9.49899261]
[1721333532069,12.47,156.68,156.66,9.50090484]
[1721333533074,1.59582793,156.71,156.66,9.50090484]
[1721333533279,12.47,156.68,156.65,9.50090484]
[1721333533480,12.47,156.67,156.66,9.50090484]
[1721333534176,12.47,156.67,156.66,20.0]
[1721333535203,12.47,156.68,156.66,20.0]
[1721333536199,1.59569232,156.71,156.67,0.17]
[1721333536389,12.47,156.7,156.67,0.17]
[1721333539494,12.47,156.68,156.67,0.17]
[1721333539873,12.47,156.68,156.66,0.34]
[1721333540290,12.47,156.68,156.66,0.17]
[1721333541788,12.47,156.67,156.65,20.0]
[1721333541991,12.47,156.67,156.65,20.3273]
[1721333542200,12.47,156.68,156.65,20.3273]
[1721333542704,1.59554719,156.71,156.65,20.3273]
[1721333542705,12.47,156.67,156.65,20.3273]
[1721333543493,12.47,156.67,156.65,20.0]
[1721333544200,12.47,156.67,156.65,20.3273]
[1721333544401,12.47,156.67,156.65,20.0]
[1721333546388,12.47,156.67,156.65,20.3273]
[1721333547479,12.47,156.67,156.65,20.0]
[1721333549595,12.47,156.66,156.64,0.17]
[1721333549795,12.47,156.66,156.65,0.17]
[1721333550514,12.47,156.66,156.64,0.34]
[1721333550684,12.47,156.65,156.64,0.34]
[1721333551499,1.59554719,156.71,156.66,0.3273]
[1721333551798,1.59543208,156.74,156.68,0.3273]
[1721333551998,12.47,156.71,156.69,0.17]
[1721333552306,12.47,156.7,156.69,0.17]
[1721333552512,1.59531731,156.73,156.68,0.3273]
[1721333552710,12.47,156.7,156.68,0.3273]
[1721333553707,12.47,156.71,156.69,0.17]
[1721333554395,12.47,156.7,156.69,0.17]
[1721333556190,1.59531731,156.73,156.69,0.17]
[1721333556396,12.47,156.71,156.69,0.17]
[1721333556604,1.59528271,156.74,156.7,0.3273]
[1721333556924,12.47,156.72,156.7,0.3273]
[1721333558214,12.47,156.71,156.69,0.34]
[1721333561113,12.47,156.7,156.69,0.17]
[1721333561520,12.47,156.7,156.66,20.3273]
[1721333561818,12.47,156.69,156.67,0.34]
[1721333562419,12.47,156.7,156.67,0.34]
[1721333562906,1.59546397,156.74,156.69,0.3273]
[1721333563216,12.47,156.72,156.7,0.17]
[1721333563438,12.47,156.71,156.68,20.0]
[1721333563723,12.47,156.7,156.69,0.17]
[1721333563889,12.47,156.7,156.68,0.17]
[1721333564288,12.47,156.71,156.68,0.17]
[1721333566799,12.47,156.7,156.68,0.17]
[1721333567195,12.47,156.71,156.68,0.17]
[1721333567706,12.47,156.72,156.68,0.17]
[1721333568919,12.47,156.69,156.67,20.0]
[1721333569094,12.47,156.68,156.67,0.3273]
[1721333569297,12.47,156.69,156.67,0.3273]
[1721333569826,12.47,156.69,156.67,1.60369701]
[1721333570029,12.47,156.69,156.67,0.3273]
[1721333570319,1.59549616,156.74,156.67,0.3273]
[1721333570493,1.59549616,156.74,156.68,0.17]
[1721333570694,12.47,156.71,156.68,0.17]
[1721333570898,12.47,156.71,156.68,1.61629958]
[1721333572013,1.59549616,156.74,156.68,0.17]
[1721333572014,12.47,156.7,156.68,0.17]
[1721333572217,12.47,156.71,156.68,1.60368689]
[1721333572521,1.59549616,156.74,156.69,0.17]
[1721333572719,12.47,156.71,156.68,0.17]
[1721333573605,12.47,156.7,156.68,0.17]
[1721333574825,14.0654918,156.69,156.67,9.53233192]
[1721333575023,12.47,156.69,156.67,9.53233192]
[1721333575399,14.0656646,156.68,156.67,9.53233192]
[1721333575697,14.0656646,156.68,156.66,29.53233192]
[1721333575921,12.47,156.67,156.66,9.53233192]
[1721333576122,12.47,156.67,156.66,29.53709159]
[1721333576423,12.47,156.67,156.66,9.53709159]
[1721333579325,12.47,156.67,156.66,9.53700473]
[1721333581215,12.47,156.67,156.65,9.53700473]
[1721333581425,12.47,156.66,156.63,10.35270833]
[1721333581722,12.47,156.66,156.64,20.17]
[1721333581928,12.47,156.66,156.64,29.70945783]
[1721333582114,12.47,156.66,156.64,29.70820832]
[1721333583123,1.59584937,156.7,156.64,29.70820832]
[1721333583443,12.47,156.65,156.64,20.17]
[1721333583732,12.47,156.65,156.64,20.0]
[1721333585037,12.47,156.65,156.63,10.35391192]
[1721333585221,16.2871,156.69,156.63,10.35391192]
[1721333585222,12.47,156.64,156.63,10.35391192]
[1721333585625,12.47,156.64,156.63,30.35391192]
[1721333585922,12.47,156.64,156.63,10.35391192]
[1721333587822,12.47,156.64,156.63,10.36071668]
[1721333588018,12.47,156.64,156.63,0.8157036]
[1721333592609,1.59620927,156.67,156.63,0.8157036]
[1721333592827,12.47,156.65,156.63,0.8157036]
[1721333593429,14.06608023,156.64,156.63,0.8157036]
[1721333593740,12.47,156.64,156.63,0.8157036]
[1721333601217,24.94,156.64,156.63,0.8157036]
[1721333601557,71.53654045,156.64,156.63,0.8157036]
[1721333602118,113.25944045,156.64,156.63,0.8157036]
[1721333602324,150.66944045,156.64,156.55,9.54782031]
[1721333602556,12.47,156.56,156.55,9.54782031]
[1721333602840,119.03944045,156.64,156.55,9.54782031]
[1721333602841,20.75689662,156.62,156.55,9.54782031]
[1721333603157,12.47,156.57,156.53,9.54782031]
[1721333603325,14.06701953,156.56,156.52,6.60840586]
[1721333603525,12.47,156.54,156.52,12.99720586]
[1721333603822,12.47,156.54,156.52,6.3888]
[1721333604022,12.47,156.54,156.53,6.3885]
[1721333607223,12.47,156.54,156.52,6.3888]
[1721333608359,12.47,156.55,156.53,6.3885]
[1721333608732,12.47,156.56,156.53,6.3885]
[1721333608937,1.59709751,156.55,156.53,6.3885]
[1721333609128,14.06709751,156.55,156.53,6.3885]
[1721333609460,12.47,156.55,156.53,6.3885]
[1721333611357,1.59709771,156.6,156.54,6.3881]
[1721333611561,12.47,156.56,156.53,6.3884]
[1721333611730,12.47,156.55,156.53,6.3884]
[1721333616454,12.47,156.55,156.52,6.5587]
[1721333616759,1.59706956,156.54,156.51,6.3893]
[1721333616934,14.06706956,156.54,156.51,6.3893]
[1721333617130,12.47,156.54,156.51,6.3893]
[1721333617734,12.47,156.54,156.52,6.3888]
[1721333617936,12.47,156.55,156.52,6.3888]
[1721333618145,12.47,156.55,156.53,6.3882]
[1721333618480,12.47,156.56,156.54,6.3881]
[1721333618642,12.47,156.57,156.54,6.3881]
[1721333619669,14.06693876,156.58,156.54,6.3881]
[1721333619979,1.596882,156.57,156.54,6.3881]
[1721333620139,14.066882,156.57,156.54,6.3881]
[1721333620334,12.47,156.57,156.54,6.3881]
[1721333621458,14.06684478,156.56,156.53,6.5584]
[1721333621938,12.47,156.56,156.53,6.5584]
[1721333622339,1.59690723,156.59,156.54,6.388]
[1721333622560,12.47,156.57,156.54,6.388]
[1721333622930,1.59687926,156.61,156.55,0.3273]
[1721333623155,14.06673144,156.6,156.56,6.3872]
[1721333624240,12.47,156.6,156.56,6.3872]
[1721333624935,14.06667801,156.59,156.53,12.7973]
[1721333625262,12.47,156.57,156.54,20.17]
[1721333625439,12.47,156.56,156.54,20.17]
[1721333625840,12.47,156.56,156.54,26.5581]
[1721333626342,1.59689427,156.55,156.53,6.3884]
[1721333626544,1.59689427,156.55,156.53,6.3885]
[1721333626737,12.47,156.55,156.53,6.3885]
[1721333627662,1.59703961,156.54,156.53,6.3885]
[1721333627865,12.47,156.55,156.53,6.3885]
[1721333628365,12.47,156.55,156.54,6.3881]
[1721333628558,12.47,156.56,156.54,6.3881]
[1721333629445,14.06697759,156.55,156.52,6.3888]
[1721333629652,12.47,156.55,156.53,6.3885]
[1721333629860,1.59711844,156.54,156.53,6.3885]
[1721333631353,12.47,156.55,156.53,6.3885]
[1721333635468,14.06710656,156.54,156.53,6.3885]
[1721333635785,12.47,156.54,156.53,6.3885]
[1721333636458,12.47,156.55,156.53,6.3885]
[1721333638266,1.59708708,156.54,156.53,6.3885]
[1721333638684,14.06708708,156.54,156.53,6.3885]
[1721333638882,12.47,156.54,156.53,6.3885]
[1721333639065,12.47,156.55,156.53,6.3885]
[1721333640899,1.59714143,156.54,156.53,6.3885]
[1721333641693,1.59714143,156.54,156.52,6.3888]
[1721333642590,12.47,156.55,156.53,6.3885]
[1721333643389,12.47,156.56,156.53,6.3885]
[1721333643695,1.59710853,156.55,156.53,6.3885]
[1721333646664,12.47,156.56,156.53,6.3885]
[1721333647567,1.59699293,156.55,156.53,6.3885]
[1721333648684,14.06699293,156.55,156.53,6.3885]
[1721333648886,12.47,156.55,156.53,6.3885]
[1721333649396,12.47,156.55,156.52,16.14633578]
[1721333649581,12.47,156.53,156.52,9.58753578]
[1721333649962,12.47,156.53,156.52,9.5883147]
[1721333650491,12.47,156.53,156.52,6.3889]
[1721333650670,12.47,156.54,156.52,6.3889]
[1721333650872,1.59719675,156.58,156.52,9.5883147]
[1721333651180,12.47,156.55,156.53,9.7583147]
[1721333651896,12.47,156.55,156.54,6.3879]
[1721333652390,12.47,156.55,156.53,16.1467147]
[1721333652595,12.47,156.55,156.52,15.9770147]
[1721333652982,12.47,156.55,156.53,6.3884]
[1721333653189,12.47,156.55,156.53,17.25330664]
[1721333653493,12.47,156.55,156.53,15.97572998]
[1721333653672,12.47,156.56,156.54,6.3878]
[1721333653878,12.47,156.57,156.55,6.3877]
[1721333654480,12.47,156.57,156.54,7.66545556]
[1721333654681,12.47,156.57,156.54,6.388]
[1721333655709,12.47,156.56,156.54,6.388]
[1721333656585,12.47,156.55,156.53,6.5584]
[1721333656885,12.47,156.54,156.53,6.5584]
[1721333659511,12.47,156.55,156.54,6.3879]
[1721333661201,12.47,156.56,156.54,6.3879]
[1721333662679,1.59696961,156.55,156.54,6.3879]
[1721333662887,14.06696961,156.55,156.54,6.3879]
[1721333663115,12.47,156.55,156.53,6.3884]
[1721333664788,12.47,156.55,156.54,6.3881]
[1721333668111,12.47,156.55,156.53,6.3884]
[1721333668404,14.06716587,156.54,156.53,6.3884]
[1721333668707,12.47,156.54,156.52,9.57712883]
[1721333668910,1.59722335,156.53,156.52,15.96680425]
[1721333670706,12.47,156.54,156.53,6.3885]
[1721333671700,1.59722309,156.57,156.53,6.3885]
[1721333671905,12.47,156.55,156.53,6.3885]
[1721333672119,12.47,156.56,156.54,6.3881]
[1721333673301,14.06722309,156.57,156.54,6.3881]
[1721333673701,12.47,156.56,156.54,6.3881]
[1721333674305,1.59706843,156.55,156.53,15.97041089]
[1721333674511,1.59706843,156.55,156.53,6.3884]
[1721333675013,1.59707571,156.56,156.53,0.3273]
[1721333675204,1.59685797,156.62,156.55,6.3873]
[1721333675394,12.47,156.58,156.55,6.3873]
[1721333675588,14.06687166,156.57,156.54,15.96677555]
[1721333675786,1.59696504,156.56,156.54,6.388]
[1721333676015,1.59696504,156.56,156.53,15.96697555]
[1721333677024,14.06696504,156.56,156.53,15.96697555]
[1721333677314,12.47,156.56,156.53,15.96697555]
[1721333677503,1.59699877,156.55,156.53,15.96697555]
[1721333677701,12.47,156.54,156.52,9.57877555]
[1721333678215,12.47,156.54,156.51,6.389]
[1721333678405,12.47,156.54,156.52,9.58487231]
[1721333678724,12.47,156.54,156.52,15.97367231]
[1721333680392,12.47,156.53,156.52,15.97367231]
[1721333681419,12.47,156.53,156.52,15.97402932]
[1721333682123,12.47,156.55,156.53,6.3885]
[1721333682322,1.59719969,156.54,156.53,6.3885]
[1721333685135,12.47,156.55,156.53,6.3885]
[1721333685420,1.59718274,156.54,156.53,6.3885]
[1721333687521,12.47,156.55,156.53,6.3885]
[1721333689926,12.47,156.55,156.53,15.97499374]
[1721333690123,1.59718502,156.59,156.53,15.97499374]
[1721333690326,1.59718502,156.59,156.54,6.388]
[1721333690327,12.47,156.57,156.54,6.388]
[1721333690632,1.5969899,156.56,156.54,6.388]
[1721333691233,12.47,156.57,156.54,6.388]
[1721333691431,1.59700895,156.56,156.54,6.388]
[1721333692627,1.59700895,156.56,156.53,15.96809547]
[1721333694008,1.59700895,156.56,156.53,6.3884]
[1721333694207,1.59700895,156.56,156.53,15.96418301]
[1721333694516,12.47,156.56,156.53,6.3884]
[1721333694708,12.47,156.56,156.53,15.96464414]
[1721333696017,12.47,156.57,156.53,15.96464414]
[1721333696415,1.59701295,156.59,156.53,17.24220562]
[1721333696823,12.47,156.57,156.53,17.24220562]
[1721333697441,12.47,156.57,156.53,17.24644944]
[1721333698911,12.47,156.57,156.53,10.85804944]
[1721333699427,12.47,156.56,156.53,10.85804944]
[1721333699627,12.47,156.56,156.53,9.58048796]
[1721333700231,12.47,156.56,156.53,15.96898796]
[1721333700435,1.59701295,156.59,156.54,7.66533183]
[1721333700613,12.47,156.58,156.55,0.17]
[1721333701121,1.59675817,156.57,156.54,9.58107807]
[1721333701318,12.47,156.56,156.54,9.58107807]
[1721333701523,12.47,156.56,156.53,9.58107807]
[1721333702519,12.47,156.56,156.53,15.96937807]
[1721333702722,12.47,156.57,156.54,6.3881]
[1721333703112,12.47,156.57,156.54,15.96782577]
[1721333703317,1.59696506,156.59,156.54,15.96743892]
[1721333703620,12.47,156.57,156.54,15.96723892]
[1721333703819,1.59689379,156.56,156.54,15.96723892]
[1721333704133,12.47,156.57,156.54,6.388]
[1721333704933,12.47,156.57,156.54,15.96733892]
[1721333706050,12.47,156.57,156.54,15.97437422]
[1721333707637,1.59689396,156.56,156.54,15.97437422]
[1721333708409,1.59689396,156.56,156.54,6.388]
[1721333708846,12.47,156.57,156.54,6.388]
[1721333709019,12.47,156.58,156.54,6.388]
[1721333709215,12.47,156.58,156.54,15.97574087]
[1721333709416,1.59693206,156.57,156.54,15.97574087]
[1721333709619,1.59693206,156.57,156.55,6.3876]
[1721333710118,1.59684062,156.57,156.54,9.58774087]
[1721333710334,14.06684233,156.58,156.55,6.3876]
[1721333710525,1.59685261,156.57,156.55,6.3876]
[1721333710836,12.47,156.56,156.54,6.388]
[1721333711042,14.06695197,156.55,156.53,9.58774087]
[1721333711360,14.06724893,156.54,156.5,16.30474087]
[1721333711534,14.0672794,156.53,156.51,6.3893]